fUST/lending_fUST_20241118
["ID","MTS","AMOUNT","RATE_DAILY","PERIOD"]
[342442792,1731881432939,-5587.52428369,0.00019,2]
[342442794,1731881432951,-986.5789488,0.00019,2]
[342442795,1731881432962,-710.00011,0.00019,2]
[342442796,1731881432974,-890.01,0.00019,2]
[342442848,1731881438799,-409.78899012,0.00019,2]
[342442849,1731881438848,-261.26807242,0.00019,2]
[342442850,1731881438858,-17538.93192758,0.00019,2]
[342442851,1731881439001,-1404.57538128,0.00019,2]
[342442853,1731881439013,-122496.97848513,0.00019,2]
[342442854,1731881439025,-35662.39999999,0.00019,2]
[342442855,1731881439036,-46575.22370456,0.00019,2]
[342442856,1731881439048,-5354.50003,0.00019,2]
[342442862,1731881440598,-698.83803785,0.00019,2]
[342442863,1731881440663,-4438.1,0.00019,2]
[342442864,1731881440675,-40172.80125333,0.00019,2]
[342442865,1731881440687,-275399.9999988,0.00019,2]
[342442866,1731881440699,-363.28380053,0.00019,2]
[342442899,1731881443641,-500.0,0.00018973,2]
[342442900,1731881443656,-530.69835886,0.00019,2]
[342442901,1731881443668,-26797.1,0.00019,2]
[342442907,1731881443734,-4647.00253182,0.00019,2]
[342442910,1731881443747,-1780.0,0.00019,2]
[342442934,1731881446724,-310186.36320473,0.00019,2]
[342442947,1731881514204,165.038682,0.00013973,2]
[342442948,1731881633099,-3573.393596,0.00017879,2]
[342442949,1731881650068,-187.9786042,0.00017955,2]
[342442950,1731881650100,-3000.0,0.00018136,2]
[342442951,1731881650134,-300.0,0.00018176,2]
[342442952,1731881650166,-300.0,0.00018176,2]
[342442953,1731881650198,-6212.0213958,0.00018177,2]
[342442954,1731881665979,-10000.0,0.00018177,2]
[342442956,1731881868774,-1333.0,0.00026137,120]
[342442957,1731881868802,-206.01916,0.00027,120]
[342442958,1731881868824,-1.46030299,0.00027,120]
[342442959,1731881869470,-190.89826402,0.00027,120]
[342442960,1731881869493,-400.0,0.00027,120]
[342442961,1731881869515,-117.89030598,0.00027,120]
[342442962,1731881869862,-195.66204402,0.00027,120]
[342442963,1731881869883,-505.80189,0.00027,120]
[342442964,1731881869908,-200.0,0.00027,120]
[342442965,1731881871185,-150.0,0.00027688,120]
[342442966,1731881871207,-505.80189,0.000278,120]
[342442967,1731881871229,-202.98668,0.000278,120]
[342442968,1731882073353,265.869398,0.00017842,2]
[342442969,1731882181428,6160.737006,0.00017849,2]
[342442970,1731882201292,165.038682,0.00013973,2]
[342442971,1731882267005,681.69089299,0.00026137,120]
[342442972,1731882267027,651.30910701,0.00026137,120]
[342442974,1731882493867,3462.04466678,0.00013,2]
[342443041,1731882631890,-300.0,0.00017848,2]
[342443043,1731882631901,-300.0,0.00017848,2]
[342443045,1731882631911,-18739.262994,0.00017849,2]
[342443047,1731882631921,-216.96747708,0.000186,2]
[342443049,1731882631933,-10494.69956213,0.00018765,2]
[342443051,1731882631943,-452.09255774,0.000188,2]
[342443053,1731882631952,-452.09255772,0.00018825,2]
[342443055,1731882631962,-452.09255772,0.0001885,2]
[342443057,1731882631972,-452.09255772,0.00018875,2]
[342443059,1731882631982,-383.12,0.0001889,3]
[342443061,1731882631991,-634.83428298,0.000189,2]
[342443063,1731882632000,-5277.04395338,0.000189,2]
[342443067,1731882632026,-13546.46734319,0.000189,2]
[342443155,1731882638054,-268.95,0.000189,2]
[342443156,1731882638065,-358.3777754,0.000189,2]
[342443168,1731882638213,-20022.20000001,0.000189,2]
[342443193,1731882639739,-604.135105,0.000189,2]
[342443196,1731882639769,-119397.90260973,0.000189,2]
[342443197,1731882639779,-160.688,0.000189,2]
[342443199,1731882639788,-153.0,0.000189,2]
[342443201,1731882639804,-153.0,0.000189,2]
[342443203,1731882639814,-153.0,0.000189,2]
[342443204,1731882639823,-452.09255772,0.000189,2]
[342443206,1731882639833,-318.85031252,0.000189,2]
[342443208,1731882639842,-500.0,0.00018973,2]
[342443210,1731882639852,-150.01,0.00018999,2]
[342443212,1731882639862,-1534.75742741,0.00018999,2]
[342443214,1731882639871,-2046.34323655,0.00018999,2]
[342443215,1731882639880,-16744.59562668,0.00019,2]
[342443256,1731882645780,-852.64301523,0.00018999,2]
[342443257,1731882645790,-10144.88045443,0.00019,2]
[342443258,1731882645803,-19058.915065,0.00019,2]
[342443261,1731882944088,165.038682,0.00013973,2]
[342443262,1731883048465,57.47946299,0.00026137,120]
[342443263,1731883048489,516.26803299,0.00026137,120]
[342443264,1731883048512,759.25250402,0.00026137,120]
[342443270,1731883628380,165.038682,0.00013973,2]
[342443282,1731883829182,658.47946299,0.00026137,120]
[342443328,1731883832138,-166.4977568,0.00017942,2]
[342443330,1731883832148,-482.48720668,0.0001866,2]
[342443442,1731883838218,-5104.59766802,0.0001866,2]
[342443443,1731883838228,-300.0,0.00018778,2]
[342443444,1731883838237,-300.0,0.00018778,2]
[342443446,1731883838248,-1766.55712099,0.000188,2]
[342443448,1731883838258,-15427.21074916,0.000189,2]
[342443449,1731883838268,-325.53300266,0.000189,2]
[342443451,1731883838277,-286.96528125,0.000189,2]
[342443453,1731883838286,-163.19163974,0.00018973,2]
[342443454,1731883838295,-568.42867682,0.00018999,2]
[342443455,1731883838305,-607.91677817,0.00018999,2]
[342443456,1731883838315,-295.44652183,0.00018999,2]
[342443457,1731883838326,-251.14724046,0.00018999,2]
[342443458,1731883838335,-500.0,0.00018999,2]
[342443459,1731883838347,-500.0,0.00018999,2]
[342443460,1731883838359,-446.70275261,0.00018999,2]
[342443461,1731883838368,-176.00869936,0.00018999,2]
[342443463,1731883838378,-353.43914448,0.00018999,2]
[342443464,1731883838388,-160.7749665,0.00018999,2]
[342443466,1731883838398,-590.47294305,0.00019,2]
[342443469,1731883838408,-2000.47870044,0.00019,3]
[342443470,1731883838417,-8775.97421745,0.00019,2]
[342443471,1731883838437,-23310.09097093,0.00019,2]
[342443473,1731883838453,-173195.9772548,0.00019,2]
[342443484,1731883840123,-2680.51915,0.00018735,2]
[342443675,1731883842906,-5689.27485,0.00018735,2]
[342443676,1731883842915,-6318.17686811,0.00019,2]
[342443677,1731883842946,-9375.7,0.00019,2]
[342443690,1731884434764,165.038682,0.00013973,2]
[342443879,1731885032386,-290.874024,0.00018648,2]
[342443958,1731885040095,-9.125976,0.00018648,2]
[342443959,1731885040105,-300.0,0.00018648,2]
[342443960,1731885040114,-150.0,0.00018649,2]
[342443961,1731885040123,-530.0,0.00018649,2]
[342443962,1731885040133,-1810.874019,0.00018649,2]
[342443963,1731885040188,-317.58746687,0.00018649,2]
[342443978,1731885046171,-261.53851413,0.00018649,2]
[342443979,1731885046181,-1116.0,0.00018649,2]
[342443980,1731885046190,-1052.25157412,0.00018898,2]
[342443981,1731885046232,-913.33446821,0.00018898,2]
[342444379,1731885115421,-154.849,0.0002277,60]
[342444497,1731885123783,155.011,0.0002277,60]
[342445452,1731885165692,305.2,0.00014,2]
[342446505,1731885212484,154.982,0.0002277,60]
[342446512,1731885213012,154.969,0.0002341,60]
[342450437,1731885412442,200.000005,0.00013973,2]
[342454002,1731886087226,200.000005,0.00013973,2]
[342454520,1731886122125,1333.0,0.0002,120]
[342454521,1731886122147,1333.0,0.0002,120]
[342454522,1731886122176,3986.25125693,0.0002,120]
[342455044,1731886232354,-1334.231,0.00017846,2]
[342455047,1731886232423,-1455.1524157,0.00017846,2]
[342455048,1731886232434,-194.83960929,0.00017881,2]
[342455049,1731886232443,-1698.6209787,0.00017906,2]
[342455050,1731886232452,-300.0,0.00018427,2]
[342455051,1731886232462,-300.0,0.00018427,2]
[342455052,1731886232471,-5959.28574462,0.00018428,2]
[342455053,1731886232481,-492.5851291,0.00018721,2]
[342455054,1731886232490,-762.52211491,0.000188,2]
[342455055,1731886232502,-421.49265646,0.000188,2]
[342455056,1731886232521,-718.01882317,0.000188,2]
[342455057,1731886232531,-4059.03228942,0.000189,2]
[342455058,1731886232540,-1512.81751631,0.000189,2]
[342455059,1731886232554,-719.34182,0.000189,2]
[342455083,1731886238551,-7944.23775455,0.000189,2]
[342455084,1731886238569,-258.26875317,0.000189,2]
[342455085,1731886238579,-730.50436441,0.000189,2]
[342455086,1731886238589,-500.0,0.00018952,2]
[342455087,1731886238598,-256.15,0.0001899,3]
[342455088,1731886238607,-768.45,0.0001899,3]
[342455089,1731886238616,-832.32639985,0.00018997,2]
[342455090,1731886238626,-319.59363197,0.00018999,2]
[342455091,1731886238635,-160.67927073,0.00018999,2]
[342455093,1731886238645,-160.68884147,0.00019,2]
[342455094,1731886238654,-393.6486287,0.00019,2]
[342455095,1731886238663,-723.22235519,0.00019,2]
[342455105,1731886240282,-68000.0,0.00019,2]
[342455106,1731886240294,-347.6912652,0.00019,2]
[342455107,1731886240310,-1349.515223,0.00019,2]
[342455123,1731886243335,-7727.62453514,0.00019,2]
[342455124,1731886243347,-2038.01190664,0.00019,2]
[342455125,1731886243359,-10863.7615716,0.00019,2]
[342455138,1731886424884,8474.88,0.00026,60]
[342455139,1731886425049,500.0,0.00026,60]
[342455140,1731886428141,609.92,0.00026,60]
[342455141,1731886430556,372.82432763,0.00026,60]
[342455142,1731886432153,500.0,0.00026,60]
[342455143,1731886432183,500.0,0.00026,60]
[342455144,1731886435851,6570.95,0.00026,60]
[342455145,1731886436777,500.0,0.00026,60]
[342455146,1731886439624,652.74,0.00026,60]
[342455148,1731886441487,500.0,0.00026,60]
[342455149,1731886441572,994.38,0.00026,60]
[342455150,1731886443014,500.0,0.00026,60]
[342455151,1731886443665,500.0,0.00026,60]
[342455152,1731886443911,1544.76,0.00026,60]
[342455153,1731886450261,1435.87,0.00026,60]
[342455154,1731886451514,500.0,0.00026,60]
[342455155,1731886453996,500.0,0.00026,60]
[342455156,1731886460292,2288.13,0.00026,60]
[342455157,1731886460553,2288.13,0.00026,60]
[342455158,1731886460786,500.0,0.00026,60]
[342455159,1731886460824,2288.13,0.00026,60]
[342455160,1731886460892,3419.41,0.00026,60]
[342455161,1731886461019,500.0,0.00026,60]
[342455162,1731886461277,500.0,0.00026,60]
[342455163,1731886461310,3419.41,0.00026,60]
[342455164,1731886461340,500.0,0.00026,60]
[342455165,1731886461395,2288.13,0.00026,60]
[342455166,1731886461544,506.73786735,0.00026,60]
[342455167,1731886461576,500.0,0.00026,60]
[342455168,1731886461607,3419.41,0.00026,60]
[342455169,1731886461657,2288.13,0.00026,60]
[342455170,1731886461822,500.0,0.00026,60]
[342455171,1731886461853,3419.41,0.00026,60]
[342455172,1731886461884,500.0,0.00026,60]
[342455173,1731886461922,2288.13,0.00026,60]
[342455174,1731886462090,500.0,0.00026,60]
[342455175,1731886462137,500.0,0.00026,60]
[342455176,1731886462166,3419.41,0.00026,60]
[342455177,1731886462198,2288.13,0.00026,60]
[342455178,1731886462387,500.0,0.00026,60]
[342455179,1731886462420,500.0,0.00026,60]
[342455180,1731886462449,3419.41,0.00026,60]
[342455181,1731886462479,2288.13,0.00026,60]
[342455182,1731886462680,500.0,0.00026,60]
[342455183,1731886462710,3419.41,0.00026,60]
[342455184,1731886462739,500.0,0.00026,60]
[342455185,1731886462966,500.0,0.00026,60]
[342455186,1731886462999,3419.41,0.00026,60]
[342455187,1731886463028,500.0,0.00026,60]
[342455188,1731886463058,2288.13,0.00026,60]
[342455189,1731886463238,500.0,0.00026,60]
[342455190,1731886463273,500.0,0.00026,60]
[342455191,1731886463303,3419.41,0.00026,60]
[342455192,1731886463336,2288.13,0.00026,60]
[342455193,1731886463505,517.09769555,0.00026,60]
[342455194,1731886463537,533.82372651,0.00026,60]
[342455195,1731886463568,3419.41,0.00026,60]
[342455196,1731886463626,2288.13,0.00026,60]
[342455197,1731886463831,3419.41,0.00026,60]
[342455198,1731886463918,2288.13,0.00026,60]
[342455199,1731886464105,3419.41,0.00026,60]
[342455200,1731886464206,2288.13,0.00026,60]
[342455201,1731886464399,3419.41,0.00026,60]
[342455202,1731886464504,2288.13,0.00026,60]
[342455203,1731886464668,3419.41,0.00026,60]
[342455204,1731886464765,2288.13,0.00026,60]
[342455205,1731886464894,1074.06,0.00026,60]
[342455206,1731886465042,2288.13,0.00026,60]
[342455207,1731886465071,3419.41,0.00026,60]
[342455208,1731886465179,1074.06,0.00026,60]
[342455209,1731886465308,2288.13,0.00026,60]
[342455210,1731886465338,3419.41,0.00026,60]
[342455211,1731886465439,1074.06,0.00026,60]
[342455212,1731886466012,2288.13,0.00026,60]
[342455213,1731886466042,3419.41,0.00026,60]
[342455214,1731886466078,1074.06,0.00026,60]
[342455215,1731886466105,2288.13,0.00026,60]
[342455216,1731886466135,1074.06,0.00026,60]
[342455217,1731886466198,3419.41,0.00026,60]
[342455218,1731886466262,2288.13,0.00026,60]
[342455219,1731886466378,1074.06,0.00026,60]
[342455220,1731886466567,2288.13,0.00026,60]
[342455221,1731886466599,3419.41,0.00026,60]
[342455222,1731886466659,1074.06,0.00026,60]
[342455223,1731886466836,3419.41,0.00026,60]
[342455224,1731886466866,2288.13,0.00026,60]
[342455225,1731886466938,1074.06,0.00026,60]
[342455226,1731886467123,3419.41,0.00026,60]
[342455227,1731886467161,2288.13,0.00026,60]
[342455228,1731886467210,1074.06,0.00026,60]
[342455229,1731886467395,3419.41,0.00026,60]
[342455230,1731886467461,1074.06,0.00026,60]
[342455231,1731886467688,3419.41,0.00026,60]
[342455232,1731886467738,1074.06,0.00026,60]
[342455233,1731886467770,2288.3656816,0.00026,60]
[342455234,1731886467999,3419.42511817,0.00026,60]
[342455235,1731886468032,1074.06,0.00026,60]
[342455236,1731886468274,1074.06,0.00026,60]
[342455237,1731886468546,1074.06,0.00026,60]
[342455238,1731886469136,1074.06,0.00026,60]
[342455239,1731886469425,1074.06,0.00026,60]
[342455240,1731886469687,1074.06,0.00026,60]
[342455241,1731886469930,1424.99,0.00026,60]
[342455242,1731886470003,1074.06,0.00026,60]
[342455243,1731886470195,1074.06,0.00026,60]
[342455244,1731886470236,500.0,0.00026,60]
[342455245,1731886470291,1424.99,0.00026,60]
[342455246,1731886470446,1074.06,0.00026,60]
[342455247,1731886470498,500.0,0.00026,60]
[342455248,1731886470527,574.99,0.00026,60]
[342455249,1731886470556,1424.99,0.00026,60]
[342455250,1731886470707,1074.06,0.00026,60]
[342455251,1731886470762,500.0,0.00026,60]
[342455252,1731886470808,1424.99,0.00026,60]
[342455253,1731886470967,1074.06,0.00026,60]
[342455254,1731886471064,1424.99,0.00026,60]
[342455255,1731886471144,574.99,0.00026,60]
[342455256,1731886471173,500.0,0.00026,60]
[342455257,1731886471232,1074.06,0.00026,60]
[342455258,1731886471353,1424.99,0.00026,60]
[342455259,1731886471419,574.99,0.00026,60]
[342455260,1731886471471,500.0,0.00026,60]
[342455261,1731886471518,1074.29773858,0.00026,60]
[342455262,1731886471617,1424.99,0.00026,60]
[342455263,1731886471669,574.99,0.00026,60]
[342455264,1731886471744,500.0,0.00026,60]
[342455265,1731886471877,1424.99,0.00026,60]
[342455266,1731886471935,574.99,0.00026,60]
[342455267,1731886472031,500.0,0.00026,60]
[342455268,1731886472059,500.0,0.00026,60]
[342455269,1731886472156,1424.99,0.00026,60]
[342455270,1731886472200,574.99,0.00026,60]
[342455271,1731886472284,500.0,0.00026,60]
[342455272,1731886472481,574.99,0.00026,60]
[342455273,1731886472576,500.0,0.00026,60]
[342455274,1731886472643,500.0,0.00026,60]
[342455275,1731886472744,1424.99,0.00026,60]
[342455276,1731886472785,574.99,0.00026,60]
[342455277,1731886472910,500.0,0.00026,60]
[342455278,1731886472951,500.0,0.00026,60]
[342455279,1731886473006,1424.99,0.00026,60]
[342455280,1731886473184,500.0,0.00026,60]
[342455281,1731886473404,500.0,0.00026,60]
[342455282,1731886473436,500.0,0.00026,60]
[342455283,1731886473468,1424.99,0.00026,60]
[342455284,1731886473501,500.0,0.00026,60]
[342455285,1731886473532,574.99,0.00026,60]
[342455286,1731886473565,230.18257176,0.00026,60]
[342455287,1731886473596,500.0,0.00026,60]
[342455288,1731886473781,574.99,0.00026,60]
[342455289,1731886473868,500.0,0.00026,60]
[342455290,1731886473987,1424.99,0.00026,60]
[342455291,1731886474069,574.99,0.00026,60]
[342455292,1731886474143,500.0,0.00026,60]
[342455293,1731886474219,500.0,0.00026,60]
[342455294,1731886474346,500.0,0.00026,60]
[342455295,1731886474379,574.99,0.00026,60]
[342455296,1731886474421,500.0,0.00026,60]
[342455297,1731886474500,500.0,0.00026,60]
[342455298,1731886474598,1424.99,0.00026,60]
[342455299,1731886474628,500.0,0.00026,60]
[342455300,1731886474658,574.99,0.00026,60]
[342455301,1731886474688,500.0,0.00026,60]
[342455302,1731886474780,500.0,0.00026,60]
[342455303,1731886474875,1424.99,0.00026,60]
[342455304,1731886474905,574.99,0.00026,60]
[342455305,1731886474934,500.0,0.00026,60]
[342455306,1731886475055,500.0,0.00026,60]
[342455307,1731886475147,500.0,0.00026,60]
[342455308,1731886475193,1424.99,0.00026,60]
[342455309,1731886475228,574.99,0.00026,60]
[342455310,1731886475266,500.0,0.00026,60]
[342455311,1731886475338,500.0,0.00026,60]
[342455312,1731886475414,1424.99,0.00026,60]
[342455313,1731886475446,574.99,0.00026,60]
[342455314,1731886475477,277.25611589,0.00026,60]
[342455315,1731886475509,626.8041982,0.00026,60]
[342455316,1731886475540,360.20902108,0.00026,60]
[342455317,1731886475661,500.0,0.00026,60]
[342455318,1731886475692,500.0,0.00026,60]
[342455319,1731886475723,1424.99,0.00026,60]
[342455320,1731886475758,574.99,0.00026,60]
[342455321,1731886475788,500.0,0.00026,60]
[342455322,1731886476198,1424.99,0.00026,60]
[342455323,1731886476228,500.0,0.00026,60]
[342455324,1731886476261,574.99,0.00026,60]
[342455325,1731886476291,500.0,0.00026,60]
[342455326,1731886476324,500.0,0.00026,60]
[342455327,1731886476355,1424.99,0.00026,60]
[342455328,1731886476384,500.0,0.00026,60]
[342455329,1731886476509,239.15997382,0.00026,60]
[342455330,1731886476553,1424.99,0.00026,60]
[342455331,1731886476590,500.0,0.00026,60]
[342455332,1731886476744,574.99,0.00026,60]
[342455333,1731886476877,500.0,0.00026,60]
[342455334,1731886476959,1424.99,0.00026,60]
[342455335,1731886477036,574.99,0.00026,60]
[342455336,1731886477225,1424.99,0.00026,60]
[342455337,1731886477311,574.99,0.00026,60]
[342455338,1731886477385,1410.79,0.00026,60]
[342455339,1731886477485,1425.2069441,0.00026,60]
[342455340,1731886477518,500.0,0.00026,60]
[342455341,1731886477576,574.99,0.00026,60]
[342455342,1731886477670,1410.79,0.00026,60]
[342455343,1731886477780,500.0,0.00026,60]
[342455344,1731886477837,574.99,0.00026,60]
[342455345,1731886477958,1410.79,0.00026,60]
[342455346,1731886478045,235.62112153,0.00026,60]
[342455347,1731886478093,575.12531532,0.00026,60]
[342455348,1731886478208,1410.79,0.00026,60]
[342455349,1731886478483,1410.79,0.00026,60]
[342455350,1731886478768,1410.79,0.00026,60]
[342455351,1731886479019,1410.79,0.00026,60]
[342455352,1731886479638,1410.79,0.00026,60]
[342455353,1731886479922,1410.79,0.00026,60]
[342455354,1731886480171,2582.74,0.00026,60]
[342455355,1731886480202,1410.79,0.00026,60]
[342455356,1731886480239,2582.74,0.00026,60]
[342455357,1731886480458,1410.79,0.00026,60]
[342455358,1731886480509,2582.74,0.00026,60]
[342455359,1731886480721,1410.79,0.00026,60]
[342455360,1731886480824,2582.74,0.00026,60]
[342455361,1731886481091,2582.74,0.00026,60]
[342455362,1731886481334,1410.79,0.00026,60]
[342455363,1731886481363,2582.74,0.00026,60]
[342455364,1731886481391,500.0,0.00026,60]
[342455365,1731886481613,2582.74,0.00026,60]
[342455366,1731886481641,1410.79,0.00026,60]
[342455367,1731886481669,237.77100031,0.00026,60]
[342455368,1731886481879,2582.74,0.00026,60]
[342455369,1731886481908,1410.79,0.00026,60]
[342455370,1731886482148,2582.74,0.00026,60]
[342455371,1731886482176,1410.79,0.00026,60]
[342455372,1731886482427,2582.74,0.00026,60]
[342455373,1731886482508,1410.79,0.00026,60]
[342455374,1731886482736,2582.74,0.00026,60]
[342455375,1731886482994,1410.79,0.00026,60]
[342455376,1731886483024,2582.74,0.00026,60]
[342455377,1731886483269,2582.74,0.00026,60]
[342455378,1731886483299,1410.79,0.00026,60]
[342455379,1731886483539,1410.79,0.00026,60]
[342455380,1731886483651,500.0,0.00026,60]
[342455381,1731886483811,1410.79,0.00026,60]
[342455382,1731886483933,2582.74,0.00026,60]
[342455383,1731886483967,536.85994118,0.00026,60]
[342455384,1731886484074,1410.79,0.00026,60]
[342455385,1731886484220,2582.74,0.00026,60]
[342455386,1731886484353,1410.79,0.00026,60]
[342455387,1731886484483,2582.74,0.00026,60]
[342455388,1731886484597,1410.99534203,0.00026,60]
[342455389,1731886484758,2582.74,0.00026,60]
[342455390,1731886485349,2582.74,0.00026,60]
[342455391,1731886485627,2582.74,0.00026,60]
[342455392,1731886485903,2582.74,0.00026,60]
[342455393,1731886485935,1389.46,0.00026,60]
[342455394,1731886486179,2582.74,0.00026,60]
[342455395,1731886486454,1389.46,0.00026,60]
[342455396,1731886486484,2582.74,0.00026,60]
[342455397,1731886486539,1389.46,0.00026,60]
[342455398,1731886486748,2582.74,0.00026,60]
[342455399,1731886486809,1389.46,0.00026,60]
[342455400,1731886487021,2582.7922658,0.00026,60]
[342455401,1731886487078,1389.46,0.00026,60]
[342455402,1731886487394,1389.46,0.00026,60]
[342455403,1731886487662,1389.46,0.00026,60]
[342455404,1731886487926,1389.46,0.00026,60]
[342455405,1731886488265,1389.46,0.00026,60]
[342455406,1731886488559,1389.46,0.00026,60]
[342455407,1731886488893,1389.46,0.00026,60]
[342455408,1731886488991,500.0,0.00026,60]
[342455409,1731886489172,1389.46,0.00026,60]
[342455410,1731886489261,500.0,0.00026,60]
[342455411,1731886489435,1389.46,0.00026,60]
[342455412,1731886489540,500.0,0.00026,60]
[342455413,1731886489707,1389.46,0.00026,60]
[342455414,1731886489798,500.0,0.00026,60]
[342455415,1731886489919,1464.48,0.00026,60]
[342455416,1731886489970,1389.46,0.00026,60]
[342455417,1731886490074,500.0,0.00026,60]
[342455418,1731886490207,1464.48,0.00026,60]
[342455419,1731886490280,1389.46,0.00026,60]
[342455420,1731886490384,500.0,0.00026,60]
[342455421,1731886490497,1464.48,0.00026,60]
[342455422,1731886490719,1389.46,0.00026,60]
[342455423,1731886490752,500.0,0.00026,60]
[342455424,1731886490785,1464.48,0.00026,60]
[342455425,1731886490819,1389.46,0.00026,60]
[342455426,1731886490880,978.5,0.00026,60]
[342455427,1731886490911,500.0,0.00026,60]
[342455428,1731886490974,500.0,0.00026,60]
[342455429,1731886491004,1464.48,0.00026,60]
[342455430,1731886491100,1389.46,0.00026,60]
[342455431,1731886491153,978.5,0.00026,60]
[342455432,1731886491221,500.0,0.00026,60]
[342455433,1731886491332,500.0,0.00026,60]
[342455434,1731886491363,1464.48,0.00026,60]
[342455435,1731886491393,1389.46,0.00026,60]
[342455436,1731886491434,978.5,0.00026,60]
[342455437,1731886491500,500.0,0.00026,60]
[342455438,1731886491641,500.0,0.00026,60]
[342455439,1731886491671,1464.48,0.00026,60]
[342455440,1731886491701,1389.46,0.00026,60]
[342455441,1731886491732,978.5,0.00026,60]
[342455442,1731886491777,500.0,0.00026,60]
[342455443,1731886491919,500.0,0.00026,60]
[342455444,1731886491951,1464.48,0.00026,60]
[342455445,1731886491982,1389.46,0.00026,60]
[342455446,1731886492018,978.5,0.00026,60]
[342455447,1731886492050,500.0,0.00026,60]
[342455448,1731886492196,1464.48,0.00026,60]
[342455449,1731886492229,1389.46,0.00026,60]
[342455450,1731886492261,978.5,0.00026,60]
[342455451,1731886492292,500.0,0.00026,60]
[342455452,1731886492339,500.0,0.00026,60]
[342455453,1731886492467,1464.48,0.00026,60]
[342455454,1731886492502,1389.5971213,0.00026,60]
[342455455,1731886492535,500.0,0.00026,60]
[342455456,1731886492611,978.5,0.00026,60]
[342455457,1731886492642,603.53446311,0.00026,60]
[342455458,1731886492726,1464.48,0.00026,60]
[342455459,1731886492758,500.0,0.00026,60]
[342455460,1731886492866,978.5,0.00026,60]
[342455461,1731886493024,1464.48,0.00026,60]
[342455462,1731886493054,500.0,0.00026,60]
[342455463,1731886493138,978.5,0.00026,60]
[342455464,1731886493360,500.0,0.00026,60]
[342455465,1731886493410,1464.48,0.00026,60]
[342455466,1731886493439,978.5,0.00026,60]
[342455467,1731886493707,500.0,0.00026,60]
[342455468,1731886493924,1464.48,0.00026,60]